bitfinex/quotes_ETHUSD_20250428
["timestamp","ask_amount","ask_price","bid_price","bid_amount"]
[1745818436228,6.06,1799.7,1799.3,0.7869]
[1745818436409,3.0,1799.8,1799.3,0.7869]
[1745818437346,4.51222404,1799.8,1799.3,0.7869]
[1745818437557,4.40579719,1799.7,1799.3,0.7869]
[1745818437763,4.40579719,1799.5,1799.3,0.7869]
[1745818438055,4.40579719,1799.5,1799.2,4.931]
[1745818439652,4.40579719,1799.5,1799.1,0.7684]
[1745818439845,4.84637691,1799.5,1799.1,5.6994]
[1745818440152,4.40579719,1799.5,1799.1,5.6994]
[1745818442358,0.7581,1799.4,1799.1,4.931]
[1745818442556,3.7581,1799.4,1799.1,4.931]
[1745818442760,3.7581,1799.4,1799.0,4.931]
[1745818443065,4.40579719,1799.3,1798.8,0.7936]
[1745818443564,4.40579719,1799.1,1798.7,4.931]
[1745818443868,0.7545,1799.0,1798.7,4.931]
[1745818444037,0.7545,1799.0,1798.6,17.4836]
[1745818444225,4.40579719,1798.9,1798.6,21.621]
[1745818444420,3.0,1798.8,1798.6,21.621]
[1745818445236,3.0,1798.8,1798.6,4.931]
[1745818445749,0.7545,1799.0,1798.6,4.931]
[1745818445916,1.57052972,1799.0,1798.6,4.931]
[1745818447551,4.40579719,1798.7,1798.4,0.7682]
[1745818447726,3.7786,1798.4,1797.9,2.16399873]
[1745818447925,3.0,1798.2,1797.7,5.7337]
[1745818448162,3.0,1798.0,1797.7,4.932]
[1745818448383,3.0,1797.8,1797.4,5.7422]
[1745818448571,3.0,1797.6,1797.2,4.932]
[1745818449073,3.0,1797.2,1797.1,0.4150161]
[1745818450147,0.8319,1797.5,1797.1,0.4150161]
[1745818450348,3.0,1797.2,1797.1,0.4150161]
[1745818451784,3.0,1797.4,1797.1,0.4150161]
[1745818452751,8.64274264,1797.7,1797.1,0.4150161]
[1745818452974,8.64274264,1797.7,1797.2,0.8019]
[1745818452975,9.40912942,1797.7,1797.2,0.8019]
[1745818453990,8.21559719,1797.7,1797.2,0.8019]
[1745818458161,3.0,1797.2,1797.1,0.4150161]
[1745818459296,9.8685,1797.2,1797.1,0.4150161]
[1745818461383,9.06,1797.2,1797.1,0.4150161]
[1745818462160,4.40579719,1797.5,1797.1,0.4150161]
[1745818462361,4.92937691,1797.5,1797.1,0.4150161]
[1745818462567,3.0,1797.4,1797.1,0.4150161]
[1745818464672,10.46579719,1797.7,1797.1,0.4150161]
[1745818465003,9.35257971,1797.8,1797.2,0.7543]
[1745818465163,3.0,1797.7,1797.2,0.7543]
[1745818465567,7.40579719,1797.7,1797.2,0.7543]
[1745818466405,4.40579719,1797.5,1797.2,0.7543]
[1745818466783,4.40579719,1797.3,1797.1,0.4150161]
[1745818466984,5.14637691,1797.3,1797.1,0.4150161]
[1745818467295,4.40579719,1797.3,1797.1,0.4150161]
[1745818470304,0.8325,1797.2,1797.1,0.4150161]
[1745818470776,1.24526238,1797.2,1797.1,0.4150161]
[1745818471198,10.30526238,1797.2,1797.1,0.4150161]
[1745818471572,10.30526238,1797.2,1796.2,4.14163986]
[1745818471573,0.7651,1797.0,1796.2,4.14163986]
[1745818471800,0.7651,1797.0,1795.7,0.8038]
[1745818471801,3.0,1796.2,1795.7,0.8038]
[1745818474509,4.40579719,1795.9,1795.7,0.8038]
[1745818475545,4.67163933,1796.0,1795.7,0.8038]
[1745818475843,5.43880326,1796.0,1795.7,0.8038]
[1745818476747,5.43880326,1796.0,1795.3,6.1278161]
[1745818477922,5.43880326,1796.0,1795.3,1.2018161]
[1745818478126,3.0,1795.9,1795.3,1.2018161]
[1745818479341,0.76716393,1796.0,1795.3,1.2018161]
[1745818479513,3.7826,1796.1,1795.4,0.8289]
[1745818479715,3.0,1796.1,1795.5,4.927]
[1745818479920,3.0,1796.1,1795.6,0.8289]
[1745818480113,3.0,1796.3,1795.6,2.1289]
[1745818480320,7.67163933,1796.3,1795.6,0.8289]
[1745818480519,0.76716393,1796.2,1795.6,0.8289]
[1745818482268,0.76716393,1796.2,1795.6,5.7559]
[1745818483465,0.76716393,1796.2,1795.7,4.958]
[1745818486646,3.0,1796.3,1795.8,0.7768]
[1745818489076,7.67163933,1796.3,1795.8,0.7768]
[1745818490175,7.67163933,1796.3,1795.9,1.3]
[1745818490386,7.67163933,1796.3,1795.8,0.7768]
[1745818490679,0.76716393,1796.2,1795.8,0.7768]
[1745818493297,0.76716393,1796.2,1795.7,4.959]
[1745818497493,4.42615088,1796.1,1795.7,4.959]
[1745818497962,4.42615088,1796.1,1795.8,0.7876]
[1745818501501,0.76716393,1796.2,1795.8,0.7876]
[1745818502696,6.06,1796.5,1795.8,0.7876]
[1745818502875,3.0,1796.4,1795.8,0.7876]
[1745818503080,3.0,1796.4,1795.9,2.0962]
[1745818503276,3.0,1796.4,1796.0,0.7962]
[1745818503985,3.0,1796.4,1796.0,5.7552]
[1745818504193,0.3,1796.3,1796.0,5.7552]
[1745818506183,4.42615088,1796.1,1795.8,4.959]
[1745818506377,4.42615088,1796.1,1795.8,0.7936]
[1745818506574,4.72615088,1796.3,1795.8,0.7936]
[1745818508207,4.42615088,1795.9,1795.8,0.7936]
[1745818508509,4.86876597,1795.9,1795.4,0.7972]
[1745818508724,4.42615088,1795.7,1795.4,5.7562]
[1745818511138,3.44261509,1795.9,1795.4,5.7562]
[1745818511441,3.0,1795.9,1795.5,0.7785]
[1745818511946,4.42615088,1795.7,1795.5,5.7385]
[1745818512129,4.42615088,1795.7,1795.5,4.96]
[1745818512324,4.42615088,1795.7,1795.3,6.1614161]
[1745818512524,4.42615088,1795.5,1795.3,6.1614161]
[1745818512724,4.42615088,1795.5,1795.3,0.4150161]
[1745818512725,5.66986597,1795.5,1795.3,0.4150161]
[1745818514555,3.0,1795.4,1795.3,0.4150161]
[1745818515960,0.44261509,1795.5,1795.3,0.4150161]
[1745818516169,3.41963244,1795.6,1795.3,0.4150161]
[1745818516479,3.0,1795.4,1795.3,0.4150161]
[1745818518255,9.06,1795.4,1795.3,0.4150161]
[1745818522267,9.8715,1795.4,1795.3,0.4150161]
[1745818523269,9.06,1795.4,1795.3,0.4150161]
[1745818523971,3.0,1795.4,1795.3,0.4150161]
[1745818524273,3.0,1795.4,1795.3,0.4150157]
[1745818525270,3.7713,1795.8,1795.3,0.4150157]
[1745818525473,4.14843,1795.8,1795.3,0.4150157]
[1745818526652,4.42615088,1795.5,1795.3,0.4150157]
[1745818527647,0.37713,1795.8,1795.4,0.7859]
[1745818527878,6.06,1795.9,1795.4,5.6919]
[1745818528069,3.0,1795.8,1795.4,5.6919]
[1745818528387,0.41382163,1796.1,1795.4,4.906]
[1745818528589,10.78615088,1796.3,1795.5,0.8099]
[1745818528888,3.0,1796.0,1795.5,0.8099]
[1745818530107,3.0,1796.2,1795.5,0.8099]
[1745818530586,6.06,1796.3,1795.6,0.8278]
[1745818530777,15.39215088,1796.7,1795.6,0.8278]
[1745818530983,1.53921509,1796.6,1795.8,0.8278]
[1745818531226,4.53921509,1796.6,1796.0,0.8278]
[1745818531382,1.53921509,1796.6,1796.0,0.8278]
[1745818531585,7.24868766,1796.8,1796.1,0.32759306]
[1745818531885,7.42615088,1796.7,1796.1,0.32759306]
[1745818532286,3.0,1796.4,1796.1,0.32759306]
[1745818533917,8.19515088,1796.7,1796.1,0.32759306]
[1745818534084,0.81951509,1796.6,1796.2,2.0938]
[1745818534424,4.42615088,1796.5,1796.2,2.0938]
[1745818534918,0.81951509,1796.6,1796.3,0.32151297]
[1745818535126,7.42615088,1796.4,1796.3,0.32151297]
[1745818535292,8.23485088,1796.4,1796.3,0.32151297]
[1745818535624,8.23485088,1796.4,1796.3,0.29457436]
[1745818536121,8.23485088,1796.4,1795.9,4.905]
[1745818536273,4.42615088,1796.2,1795.8,0.7938]
[1745818536421,4.86876597,1796.2,1795.8,5.6988]
[1745818536791,3.0,1796.2,1795.8,5.6988]
[1745818536997,7.42615088,1796.2,1795.8,5.6988]
[1745818537499,8.18635088,1796.2,1795.7,4.905]
[1745818538025,5.18635088,1795.8,1795.5,21.632]
[1745818538192,0.51863509,1795.7,1795.5,21.632]
[1745818538519,3.51863509,1795.7,1795.5,4.905]
[1745818539221,3.51863509,1795.7,1795.6,1.3]
[1745818540283,3.51863509,1795.7,1795.3,0.4150157]
[1745818540490,4.42615088,1795.5,1795.3,0.4150157]
[1745818540801,0.44261509,1795.4,1795.3,0.4150157]
[1745818541330,4.24401509,1795.4,1795.3,0.4150157]
[1745818544194,6.8229,1795.6,1795.3,0.4150157]
[1745818544602,3.0,1795.5,1795.4,0.28179486]
[1745818545525,7.42615088,1795.5,1795.4,0.28179486]
[1745818545723,8.85105597,1795.5,1795.4,0.28179486]
[1745818549502,8.85105597,1795.5,1795.3,0.4150157]
[1745818549503,1.3545,1795.4,1795.3,0.41421571]
[1745818549825,1.3545,1795.4,1794.6,22.5314]
[1745818550028,7.42615088,1795.2,1794.6,22.5314]
[1745818550229,8.77476597,1795.2,1794.6,22.5314]
[1745818551043,8.77476597,1795.2,1794.7,0.7752]
[1745818551216,4.34861509,1795.2,1794.7,0.7752]
[1745818552407,6.06,1795.3,1794.7,0.7752]
[1745818553441,10.48490509,1795.5,1794.7,0.7752]
[1745818554939,10.48490509,1795.5,1794.9,0.75]
[1745818555246,10.48490509,1795.5,1794.9,5.732]
[1745818557314,10.48490509,1795.5,1795.0,0.23654574]
[1745818557315,9.06,1795.5,1795.0,0.23654574]
[1745818562851,3.0,1795.3,1795.0,0.23654574]
[1745818563149,3.0,1795.1,1795.0,0.23654574]
[1745818566280,3.0,1795.1,1794.9,0.75]
[1745818566466,3.0,1795.1,1795.0,0.23632782]
[1745818567536,6.06,1795.3,1795.0,0.23632782]
[1745818568090,7.42615088,1795.4,1795.0,0.23632782]
[1745818568386,8.77476597,1795.4,1795.0,0.23632782]
[1745818568888,8.77476597,1795.4,1795.1,1.3]
[1745818569388,8.77476597,1795.4,1795.2,0.23612468]
[1745818569553,4.34861509,1795.4,1795.2,0.23612468]
[1745818569758,3.0,1795.4,1795.1,1.3]
[1745818569951,3.0,1795.4,1795.3,0.23602313]
[1745818570279,3.0,1795.4,1794.9,0.75]
[1745818570483,3.0,1795.4,1795.3,0.23602313]
[1745818570778,3.0,1795.4,1794.9,0.75]
[1745818571283,3.0,1795.4,1795.0,0.23632782]
[1745818573677,3.0,1795.4,1795.0,0.23632782]
[1745818573889,3.0,1795.4,1795.1,1.3]
[1745818574089,3.0,1795.4,1795.1,1.53622624]
[1745818574600,2.85237235,1795.4,1795.1,1.53622624]
[1745818574884,2.85237235,1795.4,1795.2,0.8053]
[1745818575096,7.27852323,1795.4,1795.1,1.53622624]
[1745818575404,7.27852323,1795.4,1795.2,0.23449116]
[1745818575610,7.27852323,1795.4,1795.1,1.3]
[1745818575789,7.27852323,1795.4,1795.2,0.23449116]
[1745818575989,8.69433555,1795.4,1795.1,1.3]
[1745818576208,4.42615088,1795.2,1794.9,4.915]
[1745818577099,3.0,1795.1,1794.9,4.915]
[1745818578782,3.0,1795.1,1795.0,1.3]
[1745818580203,3.0,1795.1,1794.9,4.915]
[1745818580493,3.0,1795.2,1795.0,0.7711]
[1745818583288,6.06,1795.3,1795.0,0.7711]
[1745818583688,0.42755125,1795.7,1795.0,0.7711]
[1745818583876,6.06,1795.8,1795.2,0.8199]
[1745818584084,6.74256,1795.8,1795.3,4.915]
[1745818584383,3.0,1795.7,1795.3,4.915]
[1745818584579,7.42615088,1795.7,1795.3,4.915]
[1745818585983,7.84271068,1795.7,1795.3,4.915]
[1745818586716,4.42615088,1795.5,1795.1,1.3]
[1745818586887,3.0,1795.2,1794.9,0.8279]
[1745818589614,3.0,1795.2,1795.0,0.21416956]
[1745818591128,6.06,1795.4,1795.1,0.7945]
[1745818591284,6.06,1795.4,1795.1,1.00905704]
[1745818591619,3.0,1795.6,1795.1,1.00905704]
[1745818593820,3.0,1795.6,1795.2,1.3]
[1745818593986,3.94765598,1795.6,1795.2,1.3]
[1745818595130,5.19835088,1795.5,1795.0,4.915]
[1745818595331,3.0,1795.2,1794.9,5.7252]
[1745818595502,3.0,1795.2,1795.1,0.21341599]
[1745818595702,3.74261509,1795.2,1794.9,5.7252]
[1745818595903,3.0,1795.2,1795.1,0.21341599]
[1745818596103,3.0,1795.2,1794.9,5.7252]
[1745818596284,3.0,1795.2,1795.1,0.21341599]
[1745818596490,3.0,1795.2,1794.9,5.7252]
[1745818596719,3.0,1795.2,1795.1,0.21341599]
[1745818596919,3.0,1795.2,1794.9,5.7252]
[1745818597126,3.0,1795.2,1795.1,0.21548061]
[1745818597306,3.0,1795.2,1794.9,5.7252]
[1745818597629,3.0,1795.2,1795.0,0.21558218]
[1745818601925,6.06,1795.4,1795.0,0.21558218]
[1745818602111,6.06,1795.4,1795.1,0.8184]
[1745818602313,6.06,1795.4,1795.1,1.03388061]
[1745818603860,6.06,1795.4,1795.2,1.3]
[1745818603998,1.2426598,1795.7,1795.2,1.51537905]
[1745818604314,0.4165598,1795.7,1795.2,1.51537905]
[1745818604519,3.0,1795.8,1795.3,0.7789]
[1745818604723,3.98596,1795.8,1795.3,0.9941775]
[1745818608699,4.39500907,1795.8,1795.3,0.9941775]
[1745818609428,4.39500907,1795.8,1795.3,0.7789]
[1745818609926,4.39500907,1795.8,1795.4,0.21370912]
[1745818610102,4.39500907,1795.8,1795.3,0.7789]
[1745818610503,4.39500907,1795.8,1795.4,0.21370912]
[1745818610705,3.0,1795.6,1795.4,0.21370912]
[1745818616106,0.43950091,1795.7,1795.4,0.21370912]
[1745818616310,4.39500907,1795.8,1795.4,0.21370912]
[1745818617544,2.39166325,1795.7,1795.4,0.21370912]
[1745818617861,2.39166325,1795.5,1795.4,0.21370912]
[1745818618018,11.45166325,1795.5,1794.9,0.7885]
[1745818618347,2.39166325,1795.2,1795.0,0.21259403]
[1745818618713,3.0,1795.4,1795.0,0.21259403]
[1745818618714,5.39166325,1795.4,1795.0,0.21259403]
[1745818619017,5.81369192,1795.4,1795.1,1.3]
[1745818619349,5.81369192,1795.4,1795.2,0.2131514]
[1745818619526,5.81369192,1795.4,1795.1,1.3]
[1745818619726,5.81369192,1795.4,1795.3,0.21304985]
[1745818619925,5.81369192,1795.4,1794.9,0.7885]
[1745818620140,5.81369192,1795.4,1795.3,0.21304985]
[1745818620341,7.13141969,1795.4,1794.9,0.7885]
[1745818620637,5.81369192,1795.4,1795.3,0.21304985]
[1745818620814,5.81369192,1795.4,1794.9,0.7885]
[1745818621015,0.7508,1795.3,1795.0,0.21335453]
[1745818621551,3.42202867,1795.4,1795.1,0.8201]
[1745818621755,3.42202867,1795.4,1795.1,1.03481993]
[1745818622245,3.0,1795.4,1795.1,1.03481993]
[1745818622747,6.06,1795.5,1795.1,1.03481993]
[1745818622936,6.06,1795.8,1795.2,0.7955]
[1745818623141,3.0,1795.8,1795.2,5.89711837]
[1745818623513,3.98805,1795.8,1795.2,5.89711837]
[1745818623952,3.98805,1795.8,1795.3,1.3]
[1745818624248,3.98805,1795.8,1795.3,1.51451682]
[1745818625260,3.0,1795.8,1795.4,0.7955]
[1745818625431,6.06,1795.9,1795.4,0.7955]
[1745818625628,3.0,1795.8,1795.5,0.7955]
[1745818625832,3.0,1795.8,1795.6,0.21269094]
[1745818626032,3.0,1796.0,1795.6,0.21269094]
[1745818626233,4.43089281,1796.0,1795.6,0.21269094]
[1745818626433,4.43089281,1796.0,1795.5,0.7955]
[1745818628454,4.43089281,1796.0,1795.3,4.887]
[1745818628455,4.42842806,1795.7,1795.3,4.887]
[1745818628652,4.42842806,1795.7,1795.4,0.8159]
[1745818628848,5.24688087,1795.7,1795.4,0.21289398]
[1745818629045,5.24688087,1795.7,1795.3,5.7029]
[1745818629246,5.24688087,1795.7,1795.5,0.21279246]
[1745818629447,5.24688087,1795.7,1795.4,0.21289398]
[1745818629655,8.24688087,1795.7,1795.6,0.21269094]
[1745818629833,8.24688087,1795.7,1795.5,0.21279246]
[1745818630239,8.24688087,1795.7,1795.6,0.21269094]
[1745818630550,8.24688087,1795.7,1795.3,5.7029]
[1745818630754,8.24688087,1795.7,1795.4,0.21289398]
[1745818631290,0.82468809,1795.6,1795.4,0.21289398]
[1745818631463,3.0,1795.6,1795.3,0.8159]
[1745818631633,7.42842806,1795.6,1795.3,0.8159]
[1745818631959,7.42842806,1795.6,1795.4,0.21235073]
[1745818632561,7.42842806,1795.6,1795.2,4.887]
[1745818632760,8.85611087,1795.6,1795.2,4.887]
[1745818633055,8.85611087,1795.6,1795.3,0.21266957]
[1745818633465,7.42842806,1795.4,1795.3,0.21266957]
[1745818633664,8.23722806,1795.4,1795.3,0.21266957]
[1745818633833,3.0,1795.3,1794.7,5.651]
[1745818634033,4.42842806,1795.1,1794.7,5.651]
[1745818634834,4.42842806,1795.1,1794.8,0.19563473]
[1745818635559,3.0,1795.2,1794.9,0.764]
[1745818635765,3.0,1795.2,1795.0,0.19543155]
[1745818637465,6.06,1795.3,1795.1,0.8303]
[1745818637769,3.0,1795.6,1795.2,0.19718458]
[1745818638068,3.0,1795.6,1795.1,0.8303]
[1745818638266,3.0,1795.6,1795.3,0.19708303]
[1745818638563,3.74284281,1795.6,1795.1,0.8303]
[1745818638787,3.74284281,1795.6,1795.2,0.19718458]
[1745818638968,3.74284281,1795.6,1795.2,1.49718458]
[1745818641170,4.16537271,1795.6,1795.2,1.49718458]
[1745818641340,3.4225299,1795.6,1795.3,0.8008]
[1745818641537,3.4225299,1795.6,1795.4,0.19622054]
[1745818642583,4.42842806,1795.9,1795.4,0.19622054]
[1745818642749,6.06,1796.0,1795.5,0.7867]
[1745818642949,6.06,1796.0,1795.6,0.1958545]
[1745818643149,3.0,1795.9,1795.6,0.1958545]
[1745818643682,8.33442806,1795.9,1795.6,0.1958545]
[1745818643987,8.75414361,1795.9,1795.6,0.1958545]
[1745818644151,8.75414361,1795.9,1795.5,0.7867]
[1745818644352,8.33442806,1795.9,1795.5,0.7867]
[1745818644772,9.15452806,1795.9,1795.5,0.7867]
[1745818644955,4.42842806,1795.7,1795.5,0.7867]
[1745818645160,4.42842806,1795.7,1795.6,0.1949853]
[1745818645885,3.0,1795.6,1795.4,4.838]
[1745818646387,3.0,1795.6,1795.5,1.0]
[1745818647748,0.91545281,1795.8,1795.5,1.0]
[1745818647971,3.91545281,1795.8,1795.5,1.0]
[1745818648183,3.91545281,1795.8,1795.6,0.7844]
[1745818648363,3.91545281,1795.8,1795.5,1.0]
[1745818648567,3.91545281,1795.8,1795.4,5.6224]
[1745818649389,3.91545281,1795.8,1795.4,4.838]
[1745818649390,0.39154528,1795.7,1795.4,4.838]
[1745818649565,3.0,1795.8,1795.5,0.8106]
[1745818649750,3.0,1795.8,1795.6,0.19503962]
[1745818653167,0.42674288,1795.9,1795.6,0.19503962]
[1745818653469,5.26072806,1796.1,1795.5,0.8106]
[1745818653873,3.0,1796.0,1795.6,0.19395312]
[1745818655290,4.42842806,1795.9,1795.6,0.19395312]
[1745818655664,4.42842806,1795.9,1795.5,0.8106]
[1745818656911,3.0,1795.6,1795.5,0.8106]
[1745818657709,3.0,1795.8,1795.5,0.8106]
[1745818658560,7.85287113,1796.1,1795.5,0.8106]
[1745818658761,9.38593517,1796.1,1795.6,0.19395312]
[1745818659695,9.38593517,1796.1,1795.5,0.8106]
[1745818660297,9.80798394,1796.1,1795.5,0.8106]
[1745818660462,4.42842806,1795.6,1795.5,0.8106]
[1745818661690,4.42842806,1795.8,1795.5,0.8106]
[1745818661895,4.95042087,1795.8,1795.5,0.8106]
[1745818664594,4.95042087,1795.8,1795.0,4.837]
[1745818664595,8.20522806,1795.6,1795.0,4.837]
[1745818664797,4.42842806,1795.2,1795.1,0.17794057]
[1745818664968,4.87127087,1795.2,1795.1,0.17794057]
[1745818665169,4.42842806,1795.2,1795.0,4.837]
[1745818666170,4.41780215,1795.2,1795.0,4.837]
[1745818666580,3.0,1795.3,1795.0,4.837]
[1745818666807,3.0,1795.3,1795.1,0.16352494]
[1745818667510,3.0,1795.3,1795.2,0.8183]
[1745818670779,4.84280193,1795.6,1795.2,0.8183]
[1745818670978,0.48428019,1795.5,1795.2,0.8183]
[1745818671212,4.84280193,1795.6,1795.2,0.8183]
[1745818671517,4.84280193,1795.6,1795.3,0.5]
[1745818671880,4.84280193,1795.6,1795.2,0.8183]
[1745818672079,0.41437387,1795.6,1795.2,0.8183]
[1745818672318,3.0,1795.7,1795.2,0.8183]
[1745818672614,3.0,1795.7,1795.3,0.16337608]
[1745818672820,3.61600359,1795.7,1795.2,0.8183]
[1745818672993,3.61600359,1795.7,1795.3,0.16337608]
[1745818673312,3.61600359,1795.7,1795.2,0.8183]
[1745818673489,0.8201,1795.8,1795.2,0.8183]
[1745818673696,3.0,1795.9,1795.4,0.7992]
[1745818676010,5.65221945,1796.0,1795.5,0.16317301]
[1745818676212,4.85441945,1796.0,1795.6,0.7992]
[1745818676415,3.0,1795.9,1795.6,0.7992]
[1745818677016,3.0,1795.9,1795.6,0.96200016]
[1745818677601,3.0,1795.9,1795.6,0.16280016]
[1745818677808,2.98841146,1795.9,1795.6,0.16280016]
[1745818677988,4.42842806,1795.8,1795.6,0.16280016]
[1745818678725,5.63427087,1795.8,1795.6,0.16280016]
[1745818679309,5.63427087,1795.8,1795.4,5.6]
[1745818679519,1.20584281,1795.8,1795.7,0.16177675]
[1745818679723,1.20584281,1795.8,1795.4,5.6]
[1745818679724,5.19142806,1795.8,1795.4,5.6]
[1745818679904,3.763,1795.8,1795.7,0.16177675]
[1745818680155,0.763,1795.6,1795.0,4.835]
[1745818680945,4.42842806,1795.3,1795.0,4.835]
[1745818683351,3.0,1795.4,1795.1,0.8269]
[1745818684202,4.42842806,1795.5,1795.1,0.8269]
[1745818684352,7.42842806,1795.7,1795.1,0.8269]
[1745818684555,4.42842806,1795.7,1795.1,0.8269]
[1745818687874,0.42599139,1796.0,1795.1,0.8269]
[1745818688059,11.25842806,1796.1,1795.1,0.8269]
[1745818688258,3.0,1796.0,1795.1,0.8269]
[1745818689165,4.835,1796.2,1795.2,0.7859]
[1745818689355,4.835,1796.2,1795.4,0.7859]
[1745818689558,9.26342806,1796.5,1795.5,0.7859]
[1745818689870,3.0,1796.4,1795.5,0.7859]
[1745818690180,4.835,1796.5,1795.6,0.7859]
[1745818690350,3.0,1796.4,1795.7,0.7859]
[1745818690554,3.0,1796.6,1795.9,0.7859]
[1745818691399,5.18802806,1796.7,1795.9,0.7859]
[1745818691701,3.0,1796.6,1795.9,0.7859]
[1745818692797,3.0,1796.4,1795.9,0.7859]
[1745818694587,3.0,1796.4,1796.0,0.138401]
[1745818694787,3.0,1796.4,1796.1,0.7631]
[1745818694977,3.0,1796.4,1796.2,0.13819809]
[1745818695174,3.0,1796.4,1796.1,0.7631]
[1745818695386,3.0,1796.4,1796.2,0.13819809]
[1745818695594,2.99202581,1796.4,1796.1,0.7631]
[1745818695771,2.99202581,1796.4,1796.2,0.13819809]
[1745818695987,2.99202581,1796.4,1796.1,0.7631]
[1745818696298,2.99202581,1796.4,1796.2,0.13819809]
[1745818696677,2.99202581,1796.4,1796.1,0.7631]
[1745818697000,2.99202581,1796.4,1796.2,0.13819809]
[1745818697200,2.99202581,1796.4,1796.1,0.7631]
[1745818697400,2.99202581,1796.4,1796.2,0.13819809]
[1745818697601,2.99202581,1796.4,1796.1,0.7631]
[1745818697766,2.99202581,1796.4,1796.2,0.13819809]
[1745818697973,2.99202581,1796.4,1796.1,0.7631]
[1745818698193,2.99202581,1796.4,1796.2,0.13819809]
[1745818698394,2.99202581,1796.4,1796.1,0.7631]
[1745818698583,2.99202581,1796.4,1796.2,0.13819809]
[1745818698788,2.99202581,1796.4,1796.1,0.7631]
[1745818699004,2.99202581,1796.4,1796.2,0.13819809]
[1745818699324,4.42842806,1796.3,1796.1,0.7631]
[1745818699707,4.42842806,1796.3,1796.2,0.13819809]
[1745818700025,4.42842806,1796.3,1796.1,0.7631]
[1745818700216,4.42842806,1796.3,1796.2,0.13819809]
[1745818700397,4.42842806,1796.3,1796.1,0.7631]
[1745818700591,4.42842806,1796.3,1796.2,0.13819809]
[1745818700816,4.87127087,1796.3,1796.1,0.7631]
[1745818701003,3.0,1796.2,1795.9,0.7915]
[1745818701207,4.42842806,1796.1,1795.6,0.7915]
[1745818701410,4.42235511,1796.1,1795.6,0.7915]
[1745818702104,7.42842806,1796.3,1795.6,0.7915]
[1745818703426,8.73323087,1796.3,1795.6,0.7915]
[1745818703620,4.42842806,1796.1,1795.6,0.7915]
[1745818706645,3.0,1796.3,1795.6,0.7915]
[1745818706928,3.0,1796.4,1795.6,0.7915]
[1745818707141,3.7626,1796.6,1795.6,0.7915]
[1745818707435,5.71329453,1796.6,1795.7,0.8191]
[1745818709629,5.71329453,1796.6,1795.8,0.11788429]
[1745818709920,5.71329453,1796.6,1796.0,0.7513]
[1745818710325,3.7626,1796.6,1796.1,0.11757988]
[1745818712835,6.06,1796.9,1796.2,0.7911]
[1745818713013,6.06,1796.9,1796.3,0.11737699]
[1745818713207,3.0,1796.8,1796.4,0.7911]
[1745818713407,8.33442806,1796.8,1796.4,0.7911]
[1745818713617,8.33442806,1796.8,1796.5,0.1152283]
[1745818714581,3.42325358,1797.1,1796.6,0.7911]
[1745818714727,5.18362806,1797.2,1796.6,0.7911]
[1745818714928,3.0,1797.1,1796.7,0.1150255]
[1745818715346,4.42842806,1797.2,1796.6,0.7911]
[1745818715537,4.42842806,1797.2,1796.8,0.90375473]
[1745818715736,3.44284281,1797.1,1796.8,0.7911]
[1745818715937,3.0,1796.9,1796.6,0.7911]
[1745818716344,3.0,1796.9,1796.7,0.11275612]
[1745818716541,3.87095687,1797.1,1796.7,0.11275612]
[1745818716748,3.87095687,1797.1,1796.6,0.7911]
[1745818716949,13.82251714,1797.4,1796.6,0.7911]
[1745818717151,3.0,1797.3,1796.8,0.8297]
[1745818717572,13.82251714,1797.4,1796.9,0.11147293]
[1745818717868,5.22622806,1797.6,1797.0,0.7903]
[1745818718069,5.22622806,1797.6,1797.1,0.11105416]
[1745818718268,3.52262281,1797.5,1797.2,0.7983]
[1745818719571,4.42842806,1797.4,1796.8,0.7997]
[1745818719739,3.0,1797.3,1796.8,0.7997]
[1745818719937,4.42842806,1797.2,1796.9,0.11125687]
[1745818720174,4.42842806,1797.2,1796.8,5.6317]
[1745818720476,4.42842806,1797.4,1797.1,0.7828]
[1745818720651,7.42842806,1797.6,1797.1,0.7828]
[1745818720847,7.42842806,1797.6,1797.2,0.11095283]
[1745818721050,8.17127087,1797.6,1797.1,0.7828]
[1745818721372,4.42842806,1797.4,1797.2,0.11095283]
[1745818721607,4.42842806,1797.4,1797.1,0.7828]
[1745818721807,4.42842806,1797.4,1797.2,0.11095283]
[1745818721983,4.42842806,1797.4,1797.1,0.7828]
[1745818722174,4.42842806,1797.4,1797.2,0.11095283]
[1745818722373,4.42842806,1797.4,1797.1,0.7828]
[1745818722573,4.42842806,1797.4,1797.2,0.11095283]
[1745818722801,4.42842806,1797.6,1797.1,0.7828]
[1745818722976,4.42842806,1797.6,1797.2,0.11095283]
[1745818723171,4.91399032,1797.6,1797.1,0.7828]
[1745818723374,4.91399032,1797.6,1797.2,0.11095283]
[1745818723610,4.91399032,1797.6,1797.1,0.7828]
[1745818723808,4.42842806,1797.4,1797.2,0.11095283]
[1745818724010,4.42842806,1797.4,1797.1,0.7828]
[1745818724193,4.42842806,1797.4,1797.2,0.11095283]
[1745818724405,4.42842806,1797.4,1797.1,0.7828]
[1745818724570,4.42842806,1797.4,1797.2,0.11095283]
[1745818724769,4.42842806,1797.4,1797.1,0.7828]
[1745818725005,4.42842806,1797.4,1797.2,0.11095283]
[1745818725216,4.42842806,1797.4,1797.0,4.831]
[1745818725217,5.25052087,1797.4,1797.0,4.831]
[1745818725378,3.0,1797.1,1796.9,0.7618]
[1745818725579,4.42842806,1797.0,1796.8,5.5928]
[1745818726712,3.0,1796.9,1796.5,22.3141]
[1745818726901,4.42842806,1796.7,1796.5,22.3141]
[1745818727276,4.42842806,1796.7,1796.5,5.5971]
[1745818729321,4.42842806,1796.9,1796.5,5.5971]
[1745818730808,4.42842806,1796.7,1795.8,16.713]
[1745818731020,4.42842806,1796.4,1796.1,4.831]
[1745818731325,3.0,1796.5,1796.2,0.7661]
[1745818734123,8.22562806,1796.8,1796.2,0.7661]
[1745818734422,9.70708396,1796.8,1796.2,0.7661]